bitfinex/quotes_ETHUSD_20251212
["timestamp","ask_amount","ask_price","bid_price","bid_amount"]
[1765569330983,0.05,3074.9,3074.8,0.09444716]
[1765569331173,0.05,3074.9,3074.6,0.67492245]
[1765569331393,0.0007063,3075.1,3074.8,0.58047529]
[1765569331593,0.0007063,3075.1,3074.6,3.34682723]
[1765569331876,0.0007063,3075.1,3074.8,0.09444716]
[1765569332300,0.05,3074.9,3074.8,0.09444716]
[1765569333625,0.05,3074.9,3074.8,0.67492245]
[1765569333791,0.0007063,3075.1,3074.8,4.33378515]
[1765569334417,0.0007063,3075.1,3074.8,1.08154716]
[1765569334917,0.0007063,3075.1,3075.0,0.59014716]
[1765569335708,0.0007063,3075.1,3075.0,1.08154716]
[1765569337518,0.0507063,3075.1,3075.0,0.09444716]
[1765569338842,0.0507063,3075.1,3075.0,0.67492245]
[1765569339018,0.0007063,3075.1,3075.0,4.42265497]
[1765569339189,0.0007063,3075.1,3075.0,4.91405497]
[1765569340226,0.0007063,3075.1,3075.0,3.84217968]
[1765569340723,0.0007063,3075.1,3075.0,4.33357968]
[1765569340902,0.0007063,3075.1,3075.0,0.59014716]
[1765569341096,0.0007063,3075.1,3074.8,0.67492245]
[1765569341097,0.1007063,3075.1,3074.6,3.34684271]
[1765569341298,0.5677063,3075.1,3074.8,0.09444716]
[1765569341725,0.05,3074.9,3074.8,0.09444716]
[1765569342092,0.05,3074.9,3074.6,0.09444716]
[1765569342394,0.5177063,3075.1,3074.2,3.34724193]
[1765569342395,0.05,3074.7,3074.2,3.34724193]
[1765569342927,0.05,3074.7,3074.4,0.09444716]
[1765569343511,0.05,3074.5,3074.4,0.09444716]
[1765569344120,0.05,3074.5,3074.2,0.67492245]
[1765569344121,0.05,3074.5,3074.2,0.09444716]
[1765569344295,0.05,3074.3,3074.0,0.09444716]
[1765569344493,0.517,3074.6,3074.1,0.58047529]
[1765569344928,0.567,3074.6,3074.1,0.58047529]
[1765569345502,3.81947124,3074.6,3074.1,0.58047529]
[1765569346696,3.76947124,3074.6,3074.2,0.09444716]
[1765569347528,0.05,3074.3,3074.2,0.09444716]
[1765569347909,0.05,3074.3,3074.0,0.67492245]
[1765569348109,0.05,3074.3,3074.1,0.58047529]
[1765569348834,3.76952414,3074.6,3073.7,0.4914]
[1765569349004,3.76952414,3074.6,3074.0,0.58047529]
[1765569349005,0.38195241,3074.5,3074.0,0.58047529]
[1765569349210,3.81952414,3074.6,3074.1,0.58047529]
[1765569349624,0.05,3074.2,3074.1,0.58047529]
[1765569351320,0.567,3074.2,3074.1,0.58047529]
[1765569351818,0.0007063,3075.1,3074.1,0.4982]
[1765569352025,0.89225819,3075.0,3074.1,0.59264716]
[1765569352224,7.39632323,3075.0,3074.1,3.84563177]
[1765569352527,0.05,3074.9,3074.1,3.84563177]
[1765569353026,0.05,3074.9,3074.1,4.33413177]
[1765569353431,7.34632323,3075.0,3074.1,4.33413177]
[1765569353749,0.05,3074.9,3074.1,1.66162245]
[1765569354139,6.50406504,3075.0,3074.3,0.09444716]
[1765569354343,0.517,3074.8,3074.1,3.83592448]
[1765569354528,3.76932581,3074.8,3074.1,3.83592448]
[1765569355545,7.02165162,3074.8,3074.1,3.83592448]
[1765569356449,3.76932581,3074.8,3074.1,3.83592448]
[1765569357746,3.76932581,3074.8,3074.3,0.09444716]
[1765569358456,3.81932581,3074.8,3074.3,0.09444716]
[1765569360152,0.05,3074.4,3074.3,0.09444716]
[1765569360356,0.0007063,3075.1,3074.7,0.4982]
[1765569360529,0.05,3074.8,3074.4,0.58047529]
[1765569360855,0.05,3074.8,3074.5,0.44161779]
[1765569361377,0.05,3074.8,3074.4,0.58047529]
[1765569361551,0.05,3074.5,3074.2,0.67492245]
[1765569361748,6.50431892,3074.9,3074.3,0.58047529]
[1765569361749,0.05,3074.4,3074.3,0.58047529]
[1765569362054,0.05,3074.4,3074.2,0.67492245]
[1765569362550,0.05,3074.4,3074.3,0.58047529]
[1765569362755,0.517,3074.7,3074.3,1.56717529]
[1765569363049,0.517,3074.7,3074.6,0.59264716]
[1765569363224,0.517,3074.7,3074.6,1.08114716]
[1765569363625,0.517,3075.0,3074.6,1.08114716]
[1765569363827,0.517,3075.0,3074.8,0.09444716]
[1765569364027,0.0007063,3075.1,3074.9,0.4982]
[1765569364228,0.0007063,3075.1,3075.0,0.4982]
[1765569365551,0.0007063,3075.1,3075.0,1.07867529]
[1765569365728,0.0507063,3075.1,3074.6,0.09444716]
[1765569365924,0.0007063,3075.1,3074.7,0.58047529]
[1765569366259,0.0007063,3075.1,3074.8,0.09444716]
[1765569366423,0.0007063,3075.1,3074.8,0.58294716]
[1765569367558,0.0007063,3075.1,3074.8,3.83512892]
[1765569367740,0.0007063,3075.1,3075.0,0.59264716]
[1765569368235,0.0007063,3075.1,3075.0,1.08114716]
[1765569369623,0.0007063,3075.1,3075.0,4.91365497]
[1765569372752,0.0007063,3075.1,3075.0,7.87577397]
[1765569373154,0.0007063,3075.1,3075.0,8.28127797]
[1765569375470,0.0507063,3075.1,3075.0,3.83250781]
[1765569376066,0.0007063,3075.1,3075.0,3.83250781]
[1765569376851,0.0507063,3075.1,3075.0,3.83250781]
[1765569377168,7.12155982,3075.1,3073.7,21.934265]
[1765569377346,0.05,3074.9,3073.9,3.25318366]
[1765569377668,0.05,3074.9,3073.7,0.4885]
[1765569377867,0.05,3074.8,3074.0,3.2530813]
[1765569378163,0.517,3074.7,3074.0,0.58047529]
[1765569378363,0.90393261,3074.7,3074.0,0.67492245]
[1765569378572,0.95393261,3074.7,3074.0,0.67492245]
[1765569379063,0.95393261,3074.7,3074.0,0.58047529]
[1765569379266,0.517,3074.6,3074.1,0.09444716]
[1765569380061,0.517,3074.6,3074.2,3.25287879]
[1765569380957,0.0007063,3075.1,3074.3,0.67492245]
[1765569381168,0.517,3075.0,3074.3,0.67492245]
[1765569381978,0.517,3075.0,3074.4,3.25266718]
[1765569382143,0.89896642,3075.0,3074.4,3.25266718]
[1765569382543,0.0007063,3075.1,3074.7,0.09444716]
[1765569382846,0.517,3075.0,3074.7,0.09444716]
[1765569383066,0.05,3074.8,3074.5,0.55084716]
[1765569383245,0.05,3074.6,3074.2,0.58047529]
[1765569383570,0.05,3074.5,3074.2,3.83328852]
[1765569383782,0.05,3074.9,3074.0,0.58047529]
[1765569383783,0.05,3074.3,3074.0,0.58047529]
[1765569383938,0.05,3074.2,3074.1,0.58047529]
[1765569384138,0.517,3074.5,3073.9,3.928099]
[1765569384139,0.05,3074.1,3073.9,3.928099]
[1765569385966,0.05,3074.1,3073.9,0.58047529]
[1765569386159,0.05,3074.1,3074.0,0.58047529]
[1765569386676,0.05,3074.1,3073.9,0.58047529]
[1765569387041,0.05,3074.1,3074.0,0.58047529]
[1765569390748,3.81959891,3074.5,3074.1,0.58047529]
[1765569390749,0.567,3074.5,3074.1,0.58047529]
[1765569391410,3.25268204,3075.1,3074.2,0.55084716]
[1765569391411,0.0507063,3075.1,3074.2,0.55084716]
[1765569391582,0.567,3075.0,3074.2,0.55084716]
[1765569391765,3.81903252,3075.0,3074.2,0.55084716]
[1765569391965,0.05,3074.9,3074.2,0.55084716]
[1765569392356,0.05,3074.9,3074.2,0.09444716]
[1765569393183,3.25224404,3074.8,3074.2,0.09444716]
[1765569393385,6.88641248,3074.8,3074.2,0.09444716]
[1765569393548,0.05,3074.3,3074.2,0.09444716]
[1765569394174,0.1,3074.3,3073.8,0.09444716]
[1765569394378,0.1,3074.3,3073.4,0.4584]
[1765569394379,0.05,3073.9,3073.6,0.002]
[1765569394547,0.05,3073.7,3073.6,0.002]
[1765569395849,3.25298461,3074.1,3073.6,0.4735]
[1765569396072,0.517,3073.8,3073.6,0.4735]
[1765569396282,0.517,3073.8,3073.6,0.002]
[1765569396494,0.517,3073.8,3073.7,0.4715]
[1765569396697,0.517,3073.8,3073.6,0.4584]
[1765569396698,0.05,3073.7,3073.6,0.002]
[1765569398908,0.1,3073.7,3073.6,0.002]
[1765569399180,0.05,3073.7,3073.6,0.002]
[1765569399379,0.4820322,3073.7,3073.6,0.002]
[1765569399750,0.1,3073.7,3073.6,0.002]
[1765569400666,3.35340794,3073.7,3073.6,0.002]
[1765569400980,3.75891194,3073.7,3073.6,0.002]
[1765569401178,3.87040794,3073.7,3073.6,0.002]
[1765569402777,4.27591194,3073.7,3073.6,0.002]
[1765569402979,6.73990484,3073.7,3073.6,0.002]
[1765569404966,6.22290484,3073.7,3073.6,0.002]
[1765569405291,6.73990484,3073.7,3073.6,0.002]
[1765569411006,6.22290484,3073.7,3073.6,0.002]
[1765569411304,6.73990484,3073.7,3073.6,0.002]
[1765569413702,6.22290484,3073.7,3073.6,0.002]
[1765569413876,6.73990484,3073.7,3073.6,0.002]
[1765569417907,19.14047828,3073.7,3073.6,0.002]
[1765569420090,25.34148515,3073.7,3073.6,0.002]
[1765569420422,19.14191858,3073.7,3073.6,0.002]
[1765569420723,19.14191858,3073.7,3073.0,0.002]
[1765569420724,0.405504,3073.0,3072.0,0.002]
[1765569421012,4.24044604,3072.7,3072.0,0.002]
[1765569421189,10.49145291,3072.7,3072.0,0.002]
[1765569421701,10.54145291,3072.7,3072.0,0.002]
[1765569421894,12.40879701,3072.7,3072.0,0.002]
[1765569422087,24.55724531,3072.7,3072.0,0.002]
[1765569422296,0.05,3072.4,3072.0,0.002]
[1765569422499,1.03597929,3072.1,3072.0,0.002]
[1765569422982,4.34108166,3072.1,3072.0,0.002]
[1765569426813,0.405504,3071.5,3071.3,0.002]
[1765569427112,0.567,3071.4,3071.3,0.002]
[1765569427299,1.8910391,3071.4,3071.3,0.002]
[1765569427499,2.47151439,3071.4,3071.3,0.002]
[1765569427702,5.72735863,3071.4,3071.3,0.002]
[1765569429322,0.405504,3071.2,3070.6,0.002]
[1765569429520,1.38937469,3071.2,3070.6,0.002]
[1765569429719,5.27590624,3071.2,3070.6,0.002]
[1765569430090,13.85771024,3071.2,3070.6,0.002]
[1765569430289,10.97388824,3071.2,3070.6,0.002]
[1765569430600,0.405504,3070.6,3070.0,0.1821]
[1765569430824,0.517,3070.5,3070.0,0.1821]
[1765569431319,0.405504,3070.4,3070.0,0.1821]
[1765569431487,0.405504,3070.4,3069.8,0.4571]
[1765569431889,9.77103213,3070.3,3069.8,0.4571]
[1765569432216,1.01765361,3070.2,3069.8,0.4571]
[1765569432515,0.517,3070.1,3069.8,0.4571]
[1765569432891,0.517,3070.1,3070.0,0.4521]
[1765569433518,0.517,3070.1,3070.0,0.9092]
[1765569433918,3.77422289,3070.1,3070.0,0.9092]
[1765569434123,4.90481268,3070.1,3070.0,0.9092]
[1765569434907,4.38781268,3070.1,3070.0,0.9092]
[1765569435103,4.90481268,3070.1,3070.0,0.9092]
[1765569435828,4.38781268,3070.1,3070.0,0.9092]
[1765569436026,3.77422289,3070.1,3070.0,0.9092]
[1765569436232,3.25722289,3070.1,3070.0,0.9092]
[1765569436459,0.517,3070.1,3070.0,0.9092]
[1765569436800,6.51410868,3070.3,3070.0,0.9092]
[1765569436998,6.51410868,3070.3,3069.5,3.35226264]
[1765569436999,3.25705434,3070.3,3070.2,0.6377]
[1765569437298,3.25665333,3070.7,3070.2,0.6377]
[1765569437496,0.517,3070.6,3070.4,0.4521]
[1765569437701,0.517,3070.6,3070.3,0.4571]
[1765569438028,3.2566925,3070.6,3070.5,0.4521]
[1765569438239,6.51232456,3071.1,3070.5,0.4521]
[1765569438531,6.51232456,3071.1,3071.0,0.4521]
[1765569438532,3.25616228,3071.1,3071.0,0.4521]
[1765569438826,3.77316228,3071.1,3071.0,0.4521]
[1765569438996,3.77316228,3071.1,3071.0,0.9092]
[1765569439747,3.25595024,3071.3,3071.0,0.9092]
[1765569439896,0.517,3071.2,3071.1,0.6427]
[1765569440430,0.517,3071.2,3071.1,1.1303]
[1765569442131,0.517,3071.2,3070.9,0.1953]
[1765569442132,7.78199265,3071.2,3070.9,0.1953]
[1765569442519,7.78199265,3071.2,3070.9,0.6639]
[1765569442711,7.78199265,3071.2,3070.2,0.1856]
[1765569442712,11.03804891,3071.2,3070.7,0.4686]
[1765569444406,7.78199265,3071.2,3070.7,0.4686]
[1765569444943,11.03804891,3071.2,3070.7,0.4686]
[1765569445240,1.10380489,3071.1,3070.7,0.4686]
[1765569445598,1.10380489,3071.1,3070.3,0.4915]
[1765569446213,9.76880493,3071.0,3070.3,0.4915]
[1765569446612,0.517,3070.9,3070.2,0.1856]
[1765569446929,0.567,3070.9,3070.0,0.4915]
[1765569447111,0.405504,3070.7,3070.0,0.4915]
[1765569447432,0.405504,3070.7,3070.1,0.1868]
[1765569447602,1.35920732,3070.8,3070.1,0.1868]
[1765569447810,0.517,3070.7,3070.2,0.4915]
[1765569448032,1.35920732,3070.8,3070.2,0.4915]
[1765569448227,7.03017288,3070.7,3070.2,0.4915]
[1765569448535,8.19475856,3070.7,3070.2,0.4915]
[1765569448728,4.93817212,3070.7,3070.6,0.469]
[1765569449117,11.501345,3070.7,3070.2,0.4915]
[1765569451844,4.93817212,3070.7,3070.6,0.469]
[1765569452411,8.24475856,3070.7,3070.2,0.4915]
[1765569453034,8.19475856,3070.7,3070.2,0.4915]
[1765569453823,4.93817212,3070.7,3070.6,0.469]
[1765569454742,4.93817212,3070.7,3070.6,0.9605]
[1765569455143,4.93817212,3070.7,3070.6,0.469]
[1765569455743,8.24475856,3070.7,3070.4,0.4915]
[1765569455944,8.19475856,3070.7,3070.4,0.4915]
[1765569456245,0.05,3070.5,3070.1,0.6783]
[1765569456481,0.05,3070.2,3069.4,0.4915]
[1765569456615,0.517,3070.1,3069.4,0.4915]
[1765569458022,9.77198697,3070.0,3069.4,0.4915]
[1765569458226,1.0288987,3069.9,3069.4,0.4915]
[1765569458424,1.0288987,3069.9,3069.1,0.002]
[1765569458628,1.0288987,3069.9,3069.2,0.4915]
[1765569460049,9.7726236,3069.8,3069.2,0.4915]
[1765569460227,0.517,3069.7,3069.2,0.4915]
[1765569460414,1.02896236,3069.6,3069.2,0.4915]
[1765569462217,6.51571916,3069.5,3069.2,0.4915]
[1765569463050,0.05,3069.3,3069.1,0.002]
[1765569463345,0.517,3069.2,3069.1,0.002]
[1765569463730,0.517,3069.2,3069.1,0.471]
[1765569464331,3.77517802,3069.2,3069.1,0.471]
[1765569467479,3.77517802,3069.2,3069.1,0.9625]
[1765569468165,3.82517802,3069.2,3069.1,0.002]
[1765569468369,4.52850262,3069.2,3069.1,0.002]
[1765569469646,3.25817802,3069.2,3069.1,0.9625]
[1765569469846,3.77517802,3069.2,3069.1,0.9625]
[1765569470055,3.25817802,3069.2,3069.1,0.9625]
[1765569470256,3.77517802,3069.2,3069.1,0.9625]
[1765569471344,3.77517802,3069.2,3069.1,0.471]
[1765569471579,4.52850262,3069.2,3069.1,0.002]
[1765569472187,4.93400662,3069.2,3069.1,0.002]
[1765569472381,4.52850262,3069.2,3069.1,0.002]
[1765569472584,4.57850262,3069.2,3069.1,0.002]
[1765569473085,4.47850262,3069.2,3069.1,0.4865]
[1765569473985,4.52850262,3069.2,3069.1,0.002]
[1765569478083,7.95450262,3069.2,3069.1,0.002]
[1765569478278,4.52850262,3069.2,3069.1,0.002]
[1765569480387,13.43495485,3069.2,3069.1,0.002]
[1765569480582,13.96543014,3069.2,3069.1,0.002]
[1765569480909,14.01543014,3069.2,3069.1,0.002]
[1765569482893,4.01150262,3069.2,3069.1,0.002]
[1765569483093,4.52850262,3069.2,3069.1,0.002]
[1765569483315,4.47850262,3069.2,3069.1,0.002]
[1765569483520,4.47850262,3069.2,3069.1,0.4865]
[1765569484112,3.25817802,3069.2,3069.1,0.9401]
[1765569484419,3.77517802,3069.2,3069.1,0.9401]
[1765569485598,6.51571916,3069.5,3069.1,0.9401]
[1765569485807,0.517,3069.4,3069.2,0.4536]
[1765569486213,0.517,3069.4,3069.3,0.4845]
[1765569486625,0.517,3069.4,3069.3,0.9381]
[1765569488122,3.77496572,3069.4,3069.3,0.4845]
[1765569488301,3.77496572,3069.4,3069.3,0.9381]
[1765569490426,3.25796572,3069.4,3069.3,0.9381]
[1765569490603,3.2575412,3069.8,3069.3,0.9381]
[1765569490809,0.517,3069.7,3069.5,0.4845]
[1765569491115,0.517,3069.7,3069.4,0.4536]
[1765569491429,3.2575412,3069.8,3069.6,0.4845]
[1765569491594,3.2575412,3069.8,3069.7,0.4845]
[1765569491925,0.517,3069.8,3069.7,0.4845]
[1765569492124,0.517,3069.8,3069.7,0.9381]
[1765569492331,3.7745412,3069.8,3069.4,0.4536]
[1765569492500,3.7745412,3069.8,3069.7,0.4845]
[1765569492902,3.7745412,3069.8,3069.7,0.9381]
[1765569493715,7.0320824,3069.8,3069.3,0.4536]
[1765569494036,3.7745412,3069.8,3069.7,0.4845]
[1765569497063,3.7745412,3069.8,3069.7,0.9381]
[1765569497259,8.11102318,3069.8,3069.3,0.4536]
[1765569497763,11.36856438,3069.8,3069.3,0.4536]
[1765569498256,8.11102318,3069.8,3069.3,0.4536]
[1765569499160,4.80348198,3069.8,3069.7,0.4851]
[1765569499466,4.28648198,3069.8,3069.7,0.4851]
[1765569499771,3.7745412,3069.8,3069.7,0.9382]
[1765569500776,3.2575412,3069.8,3069.7,0.9382]
[1765569501077,3.7745412,3069.8,3069.7,0.9382]
[1765569501868,3.7745412,3069.8,3069.7,0.9814]
[1765569505650,0.32567693,3070.5,3069.7,0.9814]
[1765569505849,3.25603482,3071.3,3070.1,0.1951]
[1765569505850,3.25690463,3070.4,3070.1,0.1951]
[1765569506078,0.517,3070.3,3070.1,0.1951]
[1765569506282,0.517,3070.3,3070.2,0.4963]
[1765569506483,0.517,3070.3,3070.2,0.9578]
[1765569507559,3.25685313,3070.5,3070.2,0.9578]
[1765569507759,10.75383001,3071.3,3070.4,0.4615]
[1765569507961,2.26689354,3071.2,3070.4,0.4615]
[1765569508189,2.78389354,3071.2,3070.5,0.4963]
[1765569508793,0.517,3071.1,3070.5,0.4963]
[1765569509593,0.567,3071.1,3070.2,0.4963]
[1765569509786,9.76880493,3071.0,3070.4,0.4963]
[1765569509986,1.03358049,3070.9,3070.4,0.4963]
[1765569510985,0.517,3070.8,3070.4,0.4963]
[1765569511383,0.517,3070.8,3070.7,0.4615]
[1765569511897,3.77348039,3070.8,3070.7,0.9578]
[1765569513902,3.77348039,3070.8,3070.3,0.4963]
[1765569513903,7.07996078,3070.8,3070.3,0.4963]
[1765569514209,7.79295686,3070.8,3070.3,0.4963]
[1765569514496,10.58243725,3070.8,3070.1,0.6914]
[1765569514665,0.517,3070.7,3070.1,0.6914]
[1765569515274,1.62694372,3070.7,3070.1,0.6914]
[1765569515475,1.62694372,3070.7,3070.1,0.1951]
[1765569515684,0.05,3070.2,3069.9,0.1951]
[1765569515890,3.25732899,3070.0,3069.7,0.6914]
[1765569516402,3.25732899,3070.0,3069.9,0.4615]
[1765569516771,3.25732899,3070.0,3069.9,0.9578]
[1765569517169,3.25732899,3070.0,3069.9,0.4615]
[1765569519069,3.25732899,3070.0,3069.9,0.9578]
[1765569519272,3.25716434,3070.2,3069.9,0.9578]
[1765569519480,0.517,3070.1,3070.0,0.4963]
[1765569520299,3.25622179,3071.1,3070.0,0.9578]
[1765569520609,2.07430872,3071.0,3070.1,0.4615]
[1765569520815,1.49383343,3071.0,3070.1,0.9578]
[1765569521311,6.51211252,3071.2,3070.0,3.25728149]
[1765569521312,6.51211252,3071.2,3070.9,0.4615]
[1765569521620,0.517,3071.1,3071.0,0.4615]
[1765569521815,0.517,3071.1,3070.2,0.4963]
[1765569522305,6.51253662,3071.0,3070.0,3.75358149]
[1765569522477,6.51253662,3071.0,3070.2,0.4963]
[1765569522677,0.517,3070.9,3070.2,0.4963]
[1765569523242,6.51253662,3071.0,3070.8,0.4615]
[1765569523416,0.58047529,3071.4,3070.9,0.4615]
[1765569523739,0.517,3071.3,3070.9,0.4615]
[1765569523942,0.517,3071.3,3070.9,0.9578]
[1765569524146,0.517,3071.3,3071.2,0.6566]
[1765569524648,0.517,3071.3,3071.2,1.1529]
[1765569524810,0.001,3071.9,3071.2,4.40895626]
[1765569525155,0.001,3071.9,3071.8,0.4615]
[1765569525510,0.001,3071.9,3071.8,0.9578]
[1765569526417,0.001,3071.9,3071.8,4.79369556]
[1765569527812,0.001,3071.9,3071.8,5.58327229]
[1765569528130,0.001,3071.9,3071.8,5.19919956]
[1765569529416,0.001,3071.9,3071.8,9.81232256]
[1765569530346,0.001,3071.9,3071.8,5.19919956]
[1765569531524,0.001,3071.9,3071.8,4.79369556]
[1765569531937,0.001,3071.9,3071.8,14.45444156]
[1765569532747,0.001,3071.9,3071.8,14.85994556]
[1765569533147,0.001,3071.9,3071.8,5.19919956]
[1765569533445,0.001,3071.9,3071.8,15.68664456]
[1765569533756,0.001,3071.9,3071.8,16.20364456]
[1765569534342,0.001,3071.9,3071.8,21.31992056]
[1765569534529,0.001,3071.9,3071.8,18.35546156]
[1765569534850,0.001,3071.9,3071.8,18.48576129]
[1765569535415,0.001,3071.9,3071.8,35.84649929]
[1765569536946,0.001,3071.9,3071.8,43.90472199]
[1765569540875,0.001,3072.8,3071.8,43.90472199]
[1765569540876,0.001,3072.8,3072.6,0.405504]
[1765569541029,0.001,3073.4,3073.0,0.405504]
[1765569541228,0.001,3073.4,3073.1,0.98597929]
[1765569541424,0.001,3073.4,3073.1,30.16668014]
[1765569541706,0.001,3074.0,3073.6,0.4528]
[1765569541868,0.001,3074.0,3073.9,0.4528]
[1765569542048,0.001,3074.0,3073.9,25.37621129]
[1765569542233,0.001,3074.0,3073.9,26.30715476]
[1765569542637,0.001,3074.0,3073.9,29.22504876]
[1765569542849,0.001,3074.0,3073.9,27.10271476]
[1765569543553,0.001,3074.0,3073.9,34.25577902]
[1765569543732,0.001,3074.0,3073.9,13.75759502]
[1765569543928,0.001,3074.0,3073.9,1.96421876]
[1765569544168,0.001,3074.0,3073.9,5.21741502]
[1765569545265,0.001,3074.0,3073.9,1.03771876]
[1765569545475,0.053,3074.0,3073.9,1.03771876]
[1765569545854,0.001,3074.0,3073.9,4.74371502]
[1765569546048,0.001,3074.0,3073.9,5.21741502]
[1765569546565,0.001,3074.0,3073.9,20.06664502]
[1765569547345,0.001,3074.0,3073.9,15.79028402]
[1765569547674,0.001,3074.0,3073.9,21.35125102]
[1765569548778,0.001,3074.0,3073.9,34.17653302]
[1765569549669,0.001,3074.0,3073.9,5.62291902]
[1765569549868,0.001,3074.0,3073.9,35.62291902]
[1765569550575,0.001,3074.0,3073.9,5.62291902]
[1765569550779,0.001,3074.0,3073.9,35.62291902]
[1765569551181,0.001,3074.0,3073.9,35.16567555]
[1765569551483,0.0007063,3075.1,3074.3,0.98597929]
[1765569551663,0.0007063,3075.1,3074.5,0.98597929]
[1765569551846,0.0007063,3075.1,3075.0,0.4528]
[1765569552247,0.0007063,3075.1,3075.0,0.9265]
[1765569552667,0.0007063,3075.1,3074.9,0.09444716]
[1765569553383,0.052,3075.0,3074.6,0.09444716]
[1765569553590,0.052,3074.7,3074.5,0.09444716]
[1765569553757,0.052,3074.9,3074.5,0.09444716]
[1765569553958,0.052,3074.6,3074.5,0.09444716]
[1765569554149,0.0527063,3075.1,3074.5,3.92748384]
[1765569554462,0.0007063,3075.1,3074.5,8.10654523]
[1765569554661,0.0007063,3075.1,3074.8,0.09444716]
[1765569555255,0.0007063,3075.1,3075.0,0.4528]
[1765569555689,0.0007063,3075.1,3075.0,0.58047529]
[1765569557993,0.0007063,3075.1,3075.0,3.83250781]
[1765569558503,0.0007063,3075.1,3074.9,3.83256566]
[1765569559058,0.052,3075.0,3074.8,3.83267525]
[1765569559289,0.0007063,3075.1,3074.8,0.67492245]
[1765569559290,0.052,3074.9,3074.8,0.67492245]
[1765569559658,0.052,3074.9,3074.5,0.09444716]
[1765569559991,0.052,3074.9,3074.3,3.34720832]
[1765569559992,0.052,3074.6,3074.3,3.34720832]
[1765569560211,0.052,3074.6,3074.4,3.83314247]
[1765569560569,0.0007063,3075.1,3074.5,1.09597277]
[1765569560993,0.0007063,3075.1,3074.7,0.09444716]
[1765569561357,0.052,3074.8,3074.5,0.09444716]
[1765569561790,0.052,3074.8,3074.7,0.09444716]
[1765569561989,0.0007063,3075.1,3074.7,0.09444716]
[1765569562203,0.0007063,3075.1,3075.0,0.56684716]
[1765569562484,0.0007063,3075.1,3075.0,0.09444716]
[1765569563057,0.0007063,3075.1,3075.0,0.56684716]
[1765569564006,0.0007063,3075.1,3075.0,1.06344716]
[1765569564661,0.0007063,3075.1,3075.0,4.31547968]
[1765569565188,0.0007063,3075.1,3075.0,3.81887968]
[1765569565490,0.0007063,3075.1,3075.0,0.67492245]
[1765569565881,0.0527063,3075.1,3075.0,3.92695497]
[1765569566701,0.0007063,3075.1,3075.0,4.89595497]
[1765569567208,0.001,3075.9,3075.5,0.4724]
[1765569567762,0.001,3075.9,3075.5,0.969]
[1765569568276,0.001,3075.9,3075.8,0.4724]
[1765569568472,0.001,3075.9,3075.8,4.30406197]
[1765569568864,0.001,3075.9,3075.8,0.58047529]
[1765569569390,0.053,3075.9,3075.8,0.58047529]
[1765569569594,0.053,3075.9,3075.8,0.67492245]
[1765569569789,0.053,3075.9,3075.8,0.58047529]
[1765569569993,0.105,3075.9,3075.4,0.58047529]
[1765569570163,0.053,3075.9,3075.5,0.09444716]
[1765569570366,0.052,3075.8,3075.5,0.09444716]
[1765569570564,0.001,3075.9,3075.5,3.34595098]
[1765569571765,0.001,3075.9,3075.5,0.09444716]
[1765569571964,0.001,3075.9,3075.5,3.34594527]
[1765569572700,0.001,3075.9,3075.8,0.4724]
[1765569573998,0.105,3075.9,3075.5,0.67492245]
[1765569574207,0.052,3075.6,3075.5,3.92642627]
[1765569575102,0.001,3075.9,3075.5,7.65033009]
[1765569575395,0.001,3075.9,3075.6,0.09444716]
[1765569575608,0.001,3075.9,3075.6,0.59104716]
[1765569576306,0.001,3075.9,3075.6,0.09444716]
[1765569577010,0.001,3075.9,3075.7,0.58047529]
[1765569577211,0.001,3075.9,3075.6,0.09444716]
[1765569577397,0.052,3075.7,3075.5,0.09444716]
[1765569577589,0.052,3075.6,3075.5,0.09444716]
[1765569577785,0.052,3075.6,3075.5,3.92642627]
[1765569578390,0.001,3075.9,3075.5,3.92642627]
[1765569578391,0.001,3075.9,3075.6,3.83178379]
[1765569579416,0.001,3075.9,3075.6,7.08318189]
[1765569579709,0.001,3075.9,3075.7,0.09444716]
[1765569581308,0.001,3075.9,3075.8,0.58047529]
[1765569581720,0.053,3075.9,3075.8,0.58047529]
[1765569582093,0.105,3075.9,3075.8,0.58047529]
[1765569582391,0.053,3075.9,3075.8,0.58047529]
[1765569584721,3.35608098,3075.9,3075.8,0.58047529]
[1765569584924,4.01678742,3075.9,3075.3,0.67492245]
[1765569585229,0.052,3075.4,3075.3,3.92663772]
[1765569585594,0.052,3075.4,3075.1,0.09444716]
[1765569585798,0.052,3075.6,3075.1,0.09444716]
[1765569585799,0.052,3075.2,3075.1,0.09444716]
[1765569586001,0.052,3075.2,3075.1,3.92684921]
[1765569586514,0.052,3075.2,3075.1,3.83240205]
[1765569587328,0.052,3075.2,3075.1,0.58047529]
[1765569589131,0.104,3075.2,3075.1,0.58047529]
[1765569589427,0.052,3075.2,3075.1,0.58047529]
[1765569590135,0.052,3075.2,3075.1,3.83240205]
[1765569590796,0.052,3075.2,3075.1,0.58047529]
[1765569594409,0.052,3075.2,3075.1,3.83240205]
[1765569594621,0.052,3075.2,3075.1,0.58047529]
[1765569596307,0.104,3075.2,3075.1,0.58047529]
[1765569596540,0.104,3075.2,3074.6,0.67492245]
[1765569596738,0.104,3075.2,3074.8,0.58047529]
[1765569597120,0.104,3075.2,3074.3,3.44844856]
[1765569597121,0.052,3075.1,3074.3,3.44844856]
[1765569597334,0.568,3075.1,3074.7,0.58047529]
[1765569597648,0.568,3075.1,3074.8,0.58047529]
[1765569598105,0.052,3074.9,3074.8,0.58047529]
[1765569599642,0.052,3074.9,3074.4,3.34709968]
[1765569599812,0.052,3074.8,3074.5,0.67492245]
[1765569600436,0.568,3075.1,3074.5,1.15882245]
[1765569600837,0.516,3075.1,3075.0,0.4531]
[1765569601042,0.568,3075.1,3074.7,0.09444716]
[1765569601644,0.568,3075.1,3074.5,1.15882245]